[Event "FIDE WCCC U12 2018"]
[Site "Santiago de Compostela"]
[Date "2018.11.08"]
[Round "4"]
[White "Kostolansky, Sebastian Lukas"]
[Black "Klimkowski, Jan"]
[Result "1-0"]
[ECO "B50"]
[WhiteElo "2323"]
[BlackElo "1810"]
[Annotator "NA"]
[PlyCount "75"]
[EventDate "2018.11.04"]
[EventType "swiss"]
[EventCountry "ESP"]
[SourceTitle "playchess.com"]
[Source "ChessBase"]
[SourceQuality "1"]
[TimeControl "40/5400+30:1800+30"]

1. e4 {[%emt 0:00:00]} c5 {[%emt 0:00:00]} 2. Nf3 {[%emt 0:00:00]} d6 {[%emt 0:00:00]} 3. c3 {[%emt 0:00:00]} Nf6 {[%emt 0:00:11]} 4. h3 {[%emt 0:00:00]} Qc7 {[%emt 0:00:21] B50: Sizilianisch (Verschiedenes mit 2...d6)} 5. Bd3 {[%emt 0:00:21]} b6 {[%emt 0:00:34]} 6. O-O Bb7 {[%emt 0:00:13]} 7. Re1 {[%emt 0:00:41]} Nbd7 {[%emt 0:00:07]} 8. Bc2 {[%emt 0:00:23]} Rc8 {[%emt 0:00:14]} 9. d3 {[%emt 0:15:49] LiveBook: 35 Games} e6 $146 {[%emt 0:04:27]} ({Vorgänger:} 9... g6 10. a4 Bg7 11. Na3 O-O 12. Bg5 e5 13. Qd2 d5 {0-1 (35) Bauer,C (2623)-Korobov,A (2700) Berlin 2015}) 10. a4 {[%emt 0:00:26]} Be7 {[%emt 0:01:49]} 11. Na3 a6 {[%emt 0:01:50]} 12. Bf4 {[%emt 0:06:50]} O-O {[%emt 0:03:25]} 13. Qe2 {[%emt 0:03:17]} e5 {[%emt 0:08:50]} 14. Bh2 {[%emt 0:09:22]} g6 {[%emt 0:04:16]} 15. Nc4 {[%emt 0:15:42]} Nh5 {[%emt 0:06:24]} 16. Nfd2 {[%emt 0:06:04]} f5 {[#]} (16... Bg5 $11 {remains equal.}) 17. exf5 $1 {[%emt 0:14:42]} Rxf5 {[%emt 0:02:31]} 18. d4 {[%emt 0:00:30]} Nf4 19. Bxf4 {[%emt 0:00:46]} Rxf4 {[%emt 0:04:55]} 20. dxe5 {[%emt 0:01:59]} Qc6 {[%emt 0:02:28]} 21. f3 {[%emt 0:06:05]} ({White should play} 21. Be4 d5 22. Bf3) 21... d5 {[%emt 0:07:35]} 22. e6 {[%emt 0:07:06]} Nf8 {[%emt 0:01:11]} 23. Ne5 {[%emt 0:01:10]} Qxe6 {[%emt 0:01:16]} (23... Qc7 $14) 24. g3 {[%emt 0:00:31]} Rf6 $16 {[%emt 0:02:07]} 25. Ng4 {[%emt 0:00:08]} Qxe2 {[%emt 0:03:35]} 26. Nxf6+ {[%emt 0:00:05]} Bxf6 {[%emt 0:00:30]} 27. Rxe2 {[%emt 0:00:05]} d4 {[%emt 0:01:54]} 28. Be4 {[%emt 0:00:45]} Bxe4 {[%emt 0:02:04]} 29. Nxe4 {[%emt 0:00:30]} Bg7 {[%emt 0:01:33]} 30. c4 {[%emt 0:09:37]} Rd8 {[%emt 0:00:30]} 31. a5 {[%emt 0:01:11]} d3 {[%emt 0:01:15]} 32. Rd2 {[%emt 0:00:38]} b5 {[%emt 0:00:35]} 33. Kf1 {[%emt 0:00:50]} Ne6 {[%emt 0:01:39]} 34. Rc1 {[%emt 0:00:42]} Bf8 {[%emt 0:01:10]} 35. Rc3 {[%emt 0:00:29]} bxc4 {[%emt 0:02:58]} 36. Rxc4 {[%emt 0:00:05]} Bg7 {[%emt 0:01:18]} 37. Nxc5 {[%emt 0:00:49]} Rc8 {[%emt 0:02:00]} 38. b4 {[%emt 0:00:11]} 1-0

[Event "FIDE WCCC U12 2018"]
[Site "Santiago de Compostela"]
[Date "2018.11.08"]
[Round "4"]
[White "Shen, Shiyan"]
[Black "Paternoster, Janez"]
[Result "1-0"]
[ECO "C88"]
[WhiteElo "2187"]
[BlackElo "1872"]
[Annotator "ChessBase"]
[PlyCount "45"]
[EventDate "2018.11.04"]
[EventType "swiss"]
[EventCountry "ESP"]
[SourceTitle "playchess.com"]
[Source "ChessBase"]
[SourceQuality "1"]
[TimeControl "40/5400+30:1800+30"]

1. e4 {[%emt 0:00:00]} e5 {[%emt 0:00:00]} 2. Nf3 {[%emt 0:00:00]} Nc6 {[%emt 0:00:00]} 3. Bb5 {[%emt 0:00:05]} a6 {[%emt 0:00:00]} 4. Ba4 {[%emt 0:00:10]} Nf6 {[%emt 0:00:00]} 5. O-O {[%emt 0:00:29]} Be7 {[%emt 0:00:07]} 6. Re1 {[%emt 0:00:32]} b5 {[%emt 0:00:06]} 7. Bb3 {[%emt 0:00:09]} d6 {[%emt 0:00:06]} 8. c3 {[%emt 0:00:21]} Na5 {[%emt 0:00:10]} 9. Bc2 {[%emt 0:00:12]} c5 {[%emt 0:00:10]} 10. d3 {[%emt 0:00:25]} O-O {[%emt 0:01:41]} 11. Nbd2 {[%emt 0:00:27]} Bd7 {[%emt 0:01:38]} 12. Nf1 {[%emt 0:00:36]} Nc6 {[%emt 0:02:06]} 13. Ne3 {[%emt 0:03:20]} b4 {[%emt 0:02:44]} 14. h3 {[%emt 0:04:40]} a5 {[%emt 0:05:36]} 15. d4 {[%emt 0:04:03]} Qc7 {[%emt 0:04:30]} 16. Nd5 {[%emt 0:12:12]} Nxd5 {[%emt 0:02:07]} 17. exd5 {[%emt 0:00:19]} Na7 {[%emt 0:03:34]} 18. dxe5 {[%emt 0:02:11]} dxe5 {[%emt 0:00:21]} 19. Nxe5 {[%emt 0:09:07]} Bf6 {[%emt 0:11:25]} 20. Bf4 {[%emt 0:02:54]} Rfe8 {[%emt 0:07:15]} 21. Bxh7+ {[%emt 0:05:19]} Kxh7 {[%emt 0:02:14]} 22. Qh5+ {[%emt 0:00:06]} Kg8 {[%emt 0:00:17]} 23. Qxf7+ {[%emt 0:00:09]} 1-0

[Event "FIDE WCCC U12 2018"]
[Site "Santiago de Compostela"]
[Date "2018.11.08"]
[Round "4"]
[White "Nguyen, Quoc Hy"]
[Black "Macias Pino, Diego"]
[Result "1-0"]
[ECO "A45"]
[WhiteElo "2117"]
[BlackElo "1947"]
[Annotator "ChessBase"]
[PlyCount "33"]
[EventDate "2018.11.04"]
[EventType "swiss"]
[EventCountry "ESP"]
[SourceTitle "playchess.com"]
[Source "ChessBase"]
[SourceQuality "1"]
[TimeControl "40/5400+30:1800+30"]

1. d4 {[%emt 0:00:00]} Nf6 {[%emt 0:00:00]} 2. Bg5 {[%emt 0:00:00]} d5 {[%emt 0:00:02]} 3. Nd2 {[%emt 0:00:11]} c5 {[%emt 0:02:26]} 4. dxc5 {[%emt 0:02:42]} e6 {[%emt 0:01:18]} 5. e4 {[%emt 0:08:25]} Bxc5 {[%emt 0:03:06]} 6. e5 {[%emt 0:05:07]} Qb6 {[%emt 0:06:36]} 7. exf6 {[%emt 0:14:22]} Bxf2+ {[%emt 0:00:21]} 8. Ke2 {[%emt 0:01:17]} Bxg1 {[%emt 0:00:13]} 9. Rxg1 {[%emt 0:00:47]} Qxg1 {[%emt 0:01:05]} 10. fxg7 {[%emt 0:00:14]} Rg8 {[%emt 0:00:57]} 11. Ne4 {[%emt 0:03:04]} Rxg7 {[%emt 0:03:31]} 12. Nf6+ {[%emt 0:00:34]} Kf8 {[%emt 0:00:04]} 13. Be3 {[%emt 0:07:50]} Rxg2+ {[%emt 0:09:59]} 14. Kf3 {[%emt 0:00:20]} Qxh2 {[%emt 0:01:37]} 15. Bxg2 {[%emt 0:00:12]} b6 {[%emt 0:00:14]} 16. Bf4 {[%emt 0:00:44]} Qh4 {[%emt 0:00:37]} 17. Qd4 {[%emt 0:00:58]} 1-0

[Event "FIDE WCCC U12 2018"]
[Site "Santiago de Compostela"]
[Date "2018.11.08"]
[Round "4"]
[White "Bui, Bao Anh Le"]
[Black "Palczert, Matyas"]
[Result "1/2-1/2"]
[ECO "B40"]
[WhiteElo "2101"]
[BlackElo "1866"]
[Annotator "NA"]
[PlyCount "54"]
[EventDate "2018.11.04"]
[EventType "swiss"]
[EventCountry "ESP"]
[SourceTitle "playchess.com"]
[Source "ChessBase"]
[SourceQuality "1"]
[TimeControl "40/5400+30:1800+30"]

{[%evp 10,51,20,-11,32767,32767,20,22,17,24,11,27,13,7,19,14,16,6,32767,23,26,0,33,8,14,0,21,15,127,23,31,27,10,4,0,0,58,32767,32767,32767,32767,32767,32767,-126]} 1. e4 {[%emt 0:00:00]} c5 {[%emt 0:00:00]} 2. Nf3 {[%emt 0:00:00]} e6 {[%emt 0:00:00]} 3. c4 {[%emt 0:01:34]} Nc6 {[%emt 0:00:31]} 4. Nc3 {[%emt 0:00:31]} Nd4 {[%emt 0:00:25]} 5. Bd3 {[%emt 0:02:26]} g6 {[%emt 0:05:36]} 6. Nxd4 {[%emt 0:05:48]} cxd4 {[%emt 0:00:09]} 7. Ne2 {[%emt 0:00:29]} e5 {[%emt 0:00:29]} 8. Bc2 {[%emt 0:00:16]} Nf6 {[%emt 0:02:43]} 9. O-O {[%emt 0:01:27]} Bg7 {[%emt 0:00:46]} 10. f4 {[%emt 0:00:57]} d6 {[%emt 0:00:31]} 11. Ba4+ {[%emt 0:00:20]} Bd7 {[%emt 0:00:22]} 12. d3 {[%emt 0:00:12]} O-O {[%emt 0:02:37]} 13. f5 {[%emt 0:13:32]} Bc6 {[%emt 0:04:38]} 14. Ng3 {[%emt 0:05:34]} Qd7 {[%emt 0:01:07]} 15. Bc2 {[%emt 0:00:19]} a6 {[%emt 0:05:15]} 16. b3 {[%emt 0:22:31]} b5 {[%emt 0:13:10]} 17. Nh1 {[%emt 0:11:27]} Kh8 {[%emt 0:12:08]} 18. Qe1 {[%emt 0:06:06]} Rg8 {[%emt 0:09:51]} (18... Ng8 $11 {keeps the balance.}) 19. Bg5 {[%emt 0:03:13]} (19. Qh4 $16) 19... h6 {[%emt 0:09:51]} 20. Qh4 {[%emt 0:09:29]} Nh7 {[%emt 0:13:16]} 21. Bxh6 {[%emt 0:02:32]} Bxh6 {[%emt 0:00:27]} 22. Qxh6 {[%emt 0:00:07]} gxf5 {[%emt 0:00:24]} 23. Rf3 {[%emt 0:10:52]} Rg6 {[%emt 0:05:16]} 24. Qh5 {[%emt 0:00:31]} Rag8 {[%emt 0:02:36]} 25. Rg3 {[%emt 0:00:47]} f4 {[%emt 0:01:36]} 26. Rxg6 $17 {[%emt 0:00:32]} fxg6 {[%emt 0:03:18]} 27. Qh6 {[%emt 0:00:23]} bxc4 {[%emt 0:02:31]} 1/2-1/2

[Event "FIDE WCCC U12 2018"]
[Site "Santiago de Compostela"]
[Date "2018.11.08"]
[Round "4"]
[White "Razafindratsima, Timothe"]
[Black "Ermachenko, Manuel"]
[Result "1-0"]
[ECO "B41"]
[WhiteElo "2092"]
[BlackElo "1862"]
[Annotator "NA"]
[PlyCount "73"]
[EventDate "2018.11.04"]
[EventType "swiss"]
[EventCountry "ESP"]
[SourceTitle "playchess.com"]
[Source "ChessBase"]
[SourceQuality "1"]
[TimeControl "40/5400+30:1800+30"]

{[%evp 20,73,50,58,32767,32767,105,104,32767,-1,35,27,47,0,0,10,0,6,0,-22,32767,-33,32767,-74,-26,-100,-63,-106,-90,-101,-70,32767,32767,32767,-206,-188,32767,32767,-67,32767,-83,32767,32767,32767,32767,68,152,32767,250,32767,32767,317,32767,32767,29992,29992]} 1. e4 c5 2. Nf3 e6 3. d4 cxd4 4. Nxd4 a6 5. c4 Qc7 6. Nc3 b6 7. Be2 Bb7 8. O-O Nf6 {A34: Englische Eröffnung (Symmetrische Variante)} 9. Qd3 (9. f3 Be7 10. Be3 d6 11. b4 O-O 12. Qd2 Nbd7 13. Rfc1 Rac8 14. a4 Rfe8 15. a5 bxa5 16. Rxa5 {0-1 (32) Savchenko,B (2562)-Sjugirov,S (2654) Sochi 2018}) 9... Be7 10. f4 d6 11. a3 O-O 12. g4 $146 ({Vorgänger:} 12. b4 Nbd7 13. Bb2 Rac8 14. g4 g6 15. g5 Ne8 {1-0 (60) Kyshtymov,D (2032)-Murtazin,R (2308) Voronezh 2018}) 12... d5 (12... Nc6 $11 {keeps the balance.}) 13. cxd5 exd5 14. exd5 (14. e5 $16 Ne4 15. Be3) 14... Nxd5 15. Nxd5 Bxd5 16. Be3 Rd8 17. Rac1 Qb7 18. Qc3 Re8 19. Bf2 Nd7 20. Qh3 Nf6 21. Bd3 Ne4 22. Rfe1 Rad8 23. b4 h6 24. Be3 Bf6 25. Bf1 Nd2 26. Kf2 Re4 $2 (26... Nxf1 27. Rxf1 Bxd4 28. Bxd4 Bg2 29. Qxg2 {[#]} Re2+ $1 {[%mdl 512]} 30. Kxe2 Qxg2+ 31. Ke3 Re8+ 32. Kd3 Qh3+ 33. Kc4 Rc8+ 34. Kd5 Qg2+ 35. Kd6 Rd8+ 36. Kc7 Qd5 37. a4 Qd7+ 38. Kxb6 Qxd4+ 39. Ka5 Rb8 40. Rc8+ Rxc8 41. Rc1 Rxc1 42. b5 Rc4 43. Kxa6 Rc7 44. h4 Qa7#) 27. Nf5 Nb3 28. Rc2 Qb8 (28... Nd4 $19 29. Nxd4 Bxd4 30. Bxd4 Rxf4+ 31. Kg1 Rxd4) 29. Qg3 Re6 (29... Be6 $142 30. Rc6 Bxf5 31. Rxf6 Be6 32. Rxe6 Rxe6) 30. Bd3 b5 31. h4 Rde8 {[#]} 32. g5 $1 hxg5 33. hxg5 Bd4 (33... Bd8 $16) 34. Nxd4 Nxd4 {[#]} 35. Qh4 $1 g6 36. Bxd4 f6 37. Rxe6 1-0

[Event "FIDE WCCC U12 2018"]
[Site "Santiago de Compostela"]
[Date "2018.11.08"]
[Round "4"]
[White "Pavesi, Brando"]
[Black "Sahinoz, Giulio O"]
[Result "1-0"]
[ECO "A45"]
[WhiteElo "2073"]
[BlackElo "1847"]
[Annotator "NA"]
[PlyCount "87"]
[EventDate "2018.11.04"]
[EventType "swiss"]
[EventCountry "ESP"]
[SourceTitle "playchess.com"]
[Source "ChessBase"]
[SourceQuality "1"]
[TimeControl "40/5400+30:1800+30"]

{[%evp 12,87,18,0,4,8,29,0,36,41,70,58,235,233,255,267,256,32767,32767,32767,32767,-429,387,364,277,32767,32767,387,428,462,243,32767,202,135,32767,178,185,32767,141,52,87,45,90,32767,32767,32767,32767,32767,32767,32767,0,0,32767,32767,32767,32767,107,80,32767,178,240,170,180,218,439,284,249,-9,130,0,0,-8,577,730,691,713,815,802]} 1. d4 {[%emt 0:00:00]} Nf6 {[%emt 0:00:00]} 2. Bf4 {[%emt 0:00:33]} e6 {[%emt 0:00:00]} 3. e3 {[%emt 0:00:24]} c5 {[%emt 0:00:10]} 4. Nd2 {[%emt 0:01:21]} d5 {[%emt 0:00:40]} 5. c3 {[%emt 0:00:24]} Nc6 {[%emt 0:00:57]} 6. Ngf3 {[%emt 0:01:32]} Be7 {[%emt 0:18:15]} 7. Bd3 {[%emt 0:13:16] LiveBook: 160 Games} O-O {[%emt 0:00:30]} 8. Ne5 {[%emt 0:01:01]} Bd7 {[%emt 0:26:17]} 9. h4 {[%emt 0:12:38] D02: 1 d4 d5 2 Nf3 sidelines, including 2...Nf6 3 g3 and 2...Nf6 3 Bf4} c4 {[%emt 0:08:31]} (9... Be8 10. g4 cxd4 11. exd4 Rc8 12. Nef3 Bd6 13. Be5 Bxe5 14. dxe5 Nxg4 15. Bxh7+ Kh8 16. Rg1 {½-½ (50) Motylev,A (2680)-Wen,Y (2581) China 2014}) 10. Bc2 {[%emt 0:01:10]} b5 {[%emt 0:00:35]} 11. g4 {[%emt 0:04:59]} b4 $2 {[%emt 0:03:43]} (11... Nxe5 $16 {was necessary.} 12. dxe5 Ne8) 12. g5 {[%emt 0:02:49]} bxc3 $146 {[%emt 0:04:34]} ({Predecessor:} 12... Ne8 13. Qh5 f5 14. g6 Nf6 15. gxh7+ Nxh7 16. Rg1 Be8 {1-0 (34) Pospisil,M (1908)-Meduna,E (2422) Kouty nad Desnou 2010}) 13. bxc3 {[%emt 0:16:26]} Ne8 {[%emt 0:02:02]} 14. Bxh7+ {[%emt 0:04:05]} Kxh7 {[%emt 0:04:43]} 15. Nxf7 {[%emt 0:05:24]} Rxf7 {[%emt 0:04:06]} 16. Qh5+ {[%emt 0:00:41]} Kg8 {[%emt 0:00:07]} 17. g6 {[%emt 0:00:04]} Nf6 {[%emt 0:01:22]} 18. gxf7+ {[%emt 0:00:06]} Kf8 {[%emt 0:00:05]} 19. Qg6 {[%emt 0:00:28]} Ba3 {[%emt 0:06:55]} 20. Rg1 {[%emt 0:01:18]} Ke7 {[%emt 0:00:48]} 21. Qxg7 {[%emt 0:08:48]} Qf8 {[%emt 0:03:22]} 22. Be5 {[%emt 0:06:48]} Qxg7 {[%emt 0:02:32]} 23. Rxg7 {[%emt 0:00:05]} Rf8 {[%emt 0:00:16]} 24. Rb1 {[%emt 0:01:02]} Bc8 {[%emt 0:02:04]} 25. Bf4 {[%emt 0:06:49]} (25. Ke2 $16) 25... Rxf7 {[%emt 0:00:40]} 26. Rg6 {[%emt 0:00:41]} Kf8 {[%emt 0:02:18]} 27. Bh6+ {[%emt 0:00:32]} Ke8 {[%emt 0:00:05]} 28. Bg5 {[%emt 0:00:40]} Be7 {[%emt 0:00:06]} 29. f3 {[%emt 0:00:57]} e5 {[%emt 0:03:50]} 30. Rb5 {[%emt 0:02:04]} Ba6 {[%emt 0:00:59]} 31. Rb1 {[%emt 0:02:26]} Bc8 {[%emt 0:01:19]} 32. Rb5 {[%emt 0:01:54]} Ba6 {[%emt 0:00:06]} 33. Rb2 {[%emt 0:00:37]} exd4 {[%emt 0:00:46]} ({Black should play} 33... Kd7 $14) 34. exd4 {[%emt 0:00:06]} Bc8 {[%emt 0:00:14] [#]} 35. Nf1 $1 {[%emt 0:01:40]} Bd8 {[%emt 0:01:32]} (35... Nd8 {keeps fighting.} 36. Ne3 Be6) 36. Re2+ {[%emt 0:00:30]} Kd7 {[%emt 0:00:36]} 37. Ne3 {[%emt 0:01:56]} Kd6 $2 {[%emt 0:00:37]} (37... a6 {was worth a try.} 38. Rh2 Bc7) 38. Bf4+ {[%emt 0:00:15]} (38. h5 $142) 38... Kd7 {[%emt 0:01:24]} 39. Nf5 $2 {[%emt 0:00:37]} (39. Ng4 $18) 39... Ba5 {[%emt 0:00:30]} (39... Ne8 $11 {remains equal.} 40. Rxc6 Rxf5) 40. Nd6 {[%emt 0:00:00]} (40. Kd2 $16) 40... Bxc3+ {[%emt 0:00:00]} 41. Kd1 $1 {[%emt 0:01:38]} Rf8 $2 {[%emt 0:01:42]} (41... Nh5 $11 42. Bd2 Rxf3) 42. Rg7+ {[%emt 0:01:05]} Kd8 {[%emt 0:02:17]} 43. Nf7+ {[%emt 0:00:51]} Rxf7 {[%emt 0:00:24]} 44. Rxf7 $18 {[%emt 0:00:10]} 1-0

[Event "FIDE WCCC U12 2018"]
[Site "Santiago de Compostela"]
[Date "2018.11.08"]
[Round "4"]
[White "Samadov, Read"]
[Black "Yu, Jason"]
[Result "1-0"]
[ECO "D87"]
[WhiteElo "2029"]
[BlackElo "2097"]
[Annotator "NA RC"]
[PlyCount "59"]
[EventDate "2018.11.04"]
[EventType "swiss"]
[EventCountry "ESP"]
[SourceTitle "playchess.com"]
[Source "ChessBase"]
[SourceQuality "1"]
[TimeControl "40/5400+30:1800+30"]

{[%evp 23,58,0,18,-7,0,0,0,0,0,-22,5,0,18,-23,0,0,0,0,32767,12,32767,32767,377,425,458,447,522,962,32767,1978,6145,29986,29993,29994,29995,32767,29999]} 1. d4 {[%emt 0:00:00]} Nf6 {[%emt 0:00:00]} 2. c4 {[%emt 0:00:00]} g6 {[%emt 0:00:00]} 3. Nc3 {[%emt 0:00:00]} d5 {[%emt 0:00:00]} 4. cxd5 {[%emt 0:00:05]} Nxd5 {[%emt 0:00:00]} 5. e4 {[%emt 0:00:07]} Nxc3 {[%emt 0:00:00]} 6. bxc3 {[%emt 0:00:30]} Bg7 {[%emt 0:00:00]} 7. Bc4 {[%emt 0:00:00]} O-O {[%emt 0:00:06]} 8. Ne2 {[%emt 0:00:11]} c5 {[%emt 0:00:07]} 9. Be3 {[%emt 0:00:15]} Nc6 10. O-O {[%emt 0:01:32]} Na5 {[%emt 0:00:30]} 11. Bd3 {[%emt 0:01:08]} b6 {[%emt 0:00:07]} 12. Qd2 {[%emt 0:03:25]} e5 {[%emt 0:01:01] LiveBook: 92 Games D87: Grünfeldindisch (Abtauschvariante, Botwinnik-Variante)} 13. Bh6 {[%emt 0:16:28]} (13. Bg5 Qd7 14. Rad1 exd4 15. cxd4 cxd4 16. Bh6 Qd6 17. Ng3 f6 18. Bxg7 Kxg7 19. f4 Qe7 20. f5 Nc6 21. Bb5 Ne5 22. Qxd4 {½-½ (22) Vachier Lagrave,M (2757)-Mchedlishvili,M (2609) Germany 2014}) 13... cxd4 {[%emt 0:11:07]} 14. Bxg7 {[%emt 0:03:07]} Kxg7 {[%emt 0:00:29]} 15. cxd4 {[%emt 0:02:05]} exd4 {[%emt 0:00:20]} 16. Qb2 {[%emt 0:05:21]} Qf6 {[%emt 0:20:47]} 17. f4 {[%emt 0:10:49]} ({Aber nicht} 17. Qxd4 $2 Qxd4 18. Nxd4 Rd8 $19) 17... Rd8 {[%emt 0:11:36]} 18. Rf2 $146 {[%emt 0:13:17]} ({Vorgänger:} 18. e5 Qe7 19. Be4 Rb8 20. Nxd4 Qc5 21. Rfd1 Bg4 22. Rd3 Nc4 {1-0 (64) Galvan Huaraca,J (2221)-Perez Garcia,R (2162) Benidorm 2008}) 18... Bg4 {[%emt 0:13:34]} 19. e5 {[%emt 0:06:43]} Qc6 {[%emt 0:06:38]} 20. h3 {[%emt 0:07:04]} Bxe2 {[%emt 0:01:13]} 21. Qxe2 {[%emt 0:00:30]} Rac8 {[%emt 0:04:02]} 22. f5 {[%emt 0:03:16]} Rc7 $2 {[%emt 0:08:23]} (22... Nc4) 23. e6 {[%emt 0:03:32]} Re8 {[%emt 0:03:27]} 24. Bb5 {[%emt 0:05:45]} Qc3 {[%emt 0:02:08]} 25. f6+ {[%emt 0:01:03]} Kh8 {[%emt 0:02:05]} 26. Bxe8 {[%emt 0:00:19]} Qxa1+ {[%emt 0:01:37]} 27. Rf1 {[%emt 0:00:15]} Qc3 28. exf7 {[%emt 0:00:15]} Qc5 {[%emt 0:01:53]} 29. Qe7 {[%emt 0:00:14]} Rxe7 {[%emt 0:00:29]} 30. f8=Q# {[%emt 0:00:07]} 1-0

[Event "FIDE WCCC U12 2018"]
[Site "Santiago de Compostela"]
[Date "2018.11.08"]
[Round "4"]
[White "Hu, Merric"]
[Black "Clasby, Derek"]
[Result "1/2-1/2"]
[ECO "C50"]
[WhiteElo "1849"]
[BlackElo "2087"]
[Annotator "NA RC"]
[PlyCount "101"]
[EventDate "2018.11.04"]
[EventType "swiss"]
[EventCountry "ESP"]
[SourceTitle "playchess.com"]
[Source "ChessBase"]
[SourceQuality "1"]
[TimeControl "40/5400+30:1800+30"]

{[%evp 11,99,12,29,21,19,32767,19,9,32767,32767,-7,32767,0,0,24,36,36,24,38,9,21,0,33,18,35,16,32767,32767,32767,0,0,0,0,0,-1,0,0,6,0,0,0,0,0,0,0,12,8,32767,32767,32767,32767,32767,32767,32767,32767,0,4,2,32767,32767,79,59,32767,0,88,8,8,-37,56,35,37,17,5,1,0,0,0,0,0,0,0,0,32767,32767,32767,9,0,0,3,0]} 1. e4 {[%emt 0:00:00]} e5 {[%emt 0:00:00]} 2. Nf3 {[%emt 0:00:00]} Nc6 {[%emt 0:00:00]} 3. Bc4 {[%emt 0:00:00]} Bc5 {[%emt 0:00:30]} 4. O-O {[%emt 0:00:00]} Nf6 {[%emt 0:01:06]} 5. d3 {[%emt 0:00:12]} d6 {[%emt 0:06:49]} 6. c3 {[%emt 0:00:20]} O-O {[%emt 0:02:32]} 7. a4 {[%emt 0:00:16]} a6 {[%emt 0:01:25]} 8. Na3 {[%emt 0:02:13] C54: Giuoco Piano: 4 c3 Nf6, main lines with 5 d4 and 5 d3} (8. Re1 h6 9. h3 Re8 10. Nbd2 Be6 11. b4 Bxc4 12. Nxc4 Ba7 13. Qc2 d5 14. Ne3 Bxe3 15. Bxe3 Qd7 {1-0 (44) Vachier Lagrave,M (2789)-Kramnik,V (2792) Paris 2018}) 8... Ne7 {[%emt 0:10:01]} 9. Nc2 {[%emt 0:01:20] LiveBook: 4 Partien} Ng6 {[%emt 0:02:40]} 10. Bg5 $146 {[%emt 0:13:48]} ({Predecessor:} 10. d4 Ba7 11. dxe5 dxe5 12. Qxd8 Rxd8 13. Re1 h6 14. h3 Bd7 15. Nb4 b5 {½-½ (27) Rios,C (2479)-Cuartas,J (2468) Antioquia 2016}) 10... h6 {[%emt 0:09:52]} 11. Be3 {[%emt 0:01:24]} Bxe3 {[%emt 0:10:04]} 12. Nxe3 {[%emt 0:00:54]} Nh7 {[%emt 0:01:48]} 13. d4 {[%emt 0:04:22]} Ng5 {[%emt 0:02:32]} 14. Nxg5 {[%emt 0:14:27]} Qxg5 {[%emt 0:00:47]} 15. Qf3 {[%emt 0:00:27]} Be6 {[%emt 0:07:01]} 16. Qg3 {[%emt 0:08:00]} Qf6 {[%emt 0:11:38]} 17. Bxe6 {[%emt 0:05:03]} Qxe6 {[%emt 0:00:57]} 18. d5 {[%emt 0:03:21]} Qf6 {[%emt 0:01:07]} 19. Qg4 {[%emt 0:02:15]} Qf4 {[%emt 0:10:11]} 20. Qf5 {[%emt 0:08:06]} Nh4 {[%emt 0:04:18]} 21. g3 {[%emt 0:05:38]} Nxf5 {[%emt 0:03:30]} 22. gxf4 {[%emt 0:00:12]} Nxe3 {[%emt 0:00:28]} 23. fxe3 {[%emt 0:00:08]} exf4 {[%emt 0:00:48]} 24. exf4 {[%emt 0:00:24]} Rae8 {[%emt 0:01:02]} 25. Rae1 {[%emt 0:00:23]} Re7 {[%emt 0:01:34]} 26. Re2 {[%emt 0:00:58]} Rfe8 {[%emt 0:02:18]} 27. Rfe1 {[%emt 0:00:14]} Kf8 {[%emt 0:02:24]} 28. Kf2 {[%emt 0:01:10]} g5 {[%emt 0:01:21]} 29. Kf3 {[%emt 0:17:11]} gxf4 {[%emt 0:00:09]} 30. Kxf4 {[%emt 0:00:02]} Re5 {[%emt 0:00:09]} 31. Re3 {[%emt 0:00:12]} Ke7 {[%emt 0:01:02]} 32. Rg1 {[%emt 0:00:22]} Kf6 {[%emt 0:01:00]} 33. Rg4 {[%emt 0:01:39]} h5 {[%emt 0:01:38]} 34. Rg2 {[%emt 0:00:28]} b5 {[%emt 0:00:28]} 35. a5 {[%emt 0:00:27]} Rb8 {[%emt 0:01:55]} (35... Ke7 $11 {bleibt in der Remisbreite.}) 36. b4 {[%emt 0:02:58]} Rbe8 {[%emt 0:01:10]} 37. Rgg3 {[%emt 0:01:23]} (37. Rg1 $14) 37... Rh8 {[%emt 0:01:04]} (37... c6 $11 {remains equal.}) 38. h4 {[%emt 0:00:31]} (38. Ref3 $16) 38... Rhe8 {[%emt 0:01:06]} 39. Rgf3 {[%emt 0:00:43]} c6 {[%emt 0:00:32]} ({Black should play} 39... Kg7 $11) 40. dxc6 {[%emt 0:00:00]} Rc8 {[%emt 0:00:00]} 41. Rd3 {[%emt 0:03:04]} Rxc6 {[%emt 0:00:39]} 42. Rd4 {[%emt 0:00:18]} Ke6 {[%emt 0:08:39]} 43. Re3 {[%emt 0:01:36]} f6 {[%emt 0:01:27]} 44. Rg3 {[%emt 0:03:13]} Kf7 {[%emt 0:01:41]} 45. Rgd3 {[%emt 0:00:53]} Ke7 {[%emt 0:01:05]} 46. Rg3 {[%emt 0:02:07]} Kf7 {[%emt 0:03:25]} 47. Rgd3 {[%emt 0:00:18]} Ke6 {[%emt 0:01:33]} 48. Rd5 {[%emt 0:00:47]} Ke7 $1 {[%emt 0:02:19]} 49. R5d4 {[%emt 0:01:23]} Ke6 50. Rd5 $11 Ke7 51. Rxe5+ 1/2-1/2